Cogmind - Beta 11 X8 @@@ ROGUE MODE // 2021.11.10 @ 21:33:17 Player: Olga Result: Destroyed by S-27 Virus with Autogun Performance ------------- Evolutions (5) 2500 Regions Visited (18) 3600 Robots Destroyed (69) 345 Value Destroyed (3376) 3376 Prototype IDs (36) 720 Alien Tech Used (0) 0 Bonus (2581) 2581 TOTAL SCORE: 13122 Bonus ------- High Alert Combat Kills 100 Follower Combat Kills 1201 Entered Garrisons 200 Used RIF Installer 500 Aligned with FarCom 300 Met Data Miner 300 Friendly Fire -20 Cogmind --------- Core Integrity 0/1000 Matter 300/300 Energy 99/100 System Corruption 8% Temperature Cool (0) Movement Core (50) Location -5/Upper Caves Parts ------- > --- POWER (1) -------- (None) > --- PROPULSION (4) --- (None) > --- UTILITY (8) ------ Relay Coupler [Grunt] (12) > --- WEAPON (4) ------- (None) > --- INVENTORY (5) ---- Neutrino Core Improved Light Armor Plating Sensor Drone Bay (15/20) Remote Datajack Improved Remote Datajack Peak State ------------ > --- POWER ------------ Neutrino Core > --- PROPULSION ------- Heavy Treads Heavy Treads > --- UTILITY ---------- Advanced Cooling System Advanced Coolant Injector Medium Storage Unit System Shield Relay Coupler [Grunt] Relay Coupler [Brawler] Advanced Reclamation Unit > --- WEAPON ----------- Flak Gun Coil Gun Molecular Deconstructor > --- INVENTORY -------- Neutrino Core Heavy Treads Heavy Treads Sensor Drone Bay Remote Datajack [Rating: 90] Favorites ----------- Power Improved Deuterium Engine Engine Improved Deuterium Engine Power Core Neutrino Core Propulsion Heavy Treads Treads Heavy Treads Leg Aluminum Leg Wheel Armored Wheel Hover Unit Gravmag System Flight Unit VTOL Module Utility Medium Storage Unit Device Sensor Drone Bay Storage Medium Storage Unit Processor 0b10 Alert Chip Hackware Relay Coupler [Grunt] Protection Improved Light Armor Plating Weapon Flak Gun Energy Gun EM Pulse Gun Ballistic Gun Flak Gun Ballistic Cannon Heavy Flak Cannon Launcher Grenade Launcher Special Weapon Molecular Deconstructor Build | -11 -10 -10 -10 -9 -8 -7 -7 -7 -7 -6 -6 -6 -6 -6 -6 -5 -5 -5 ------- Run | Scr Mat Min Exi Min Mat Fac Low Low Dat Pro Fac Was Fac Gar Fac Fac Upp Upp Slots Evolved 10 | . . . . . 4 2 . . . . 2 . . . . 2 . . Power . | . . . . . . . . . . . . . . . . . . . Propulsion 2 | . . . . . 2 . . . . . . . . . . . . . Utility 6 | . . . . . 2 2 . . . . 2 . . . . . . . Weapon 2 | . . . . . . . . . . . . . . . . 2 . . Parts Attached 101 | . 6 8 . 1 9 6 10 4 . . 19 6 4 4 4 19 1 . Power 7 | . 1 1 . . 1 . 1 . . . 1 . 1 . . 1 . . Engine 6 | . 1 1 . . 1 . 1 . . . 1 . 1 . . . . . Core 1 | . . . . . . . . . . . . . . . . 1 . . Reactor . | . . . . . . . . . . . . . . . . . . . Propulsion 31 | . 1 1 . . 3 1 4 3 . . 9 4 . . . 5 . . Treads 7 | . . . . . . . . . . . . 4 . . . 3 . . Leg 16 | . 1 1 . . 1 . 4 2 . . 7 . . . . . . . Wheel 2 | . . . . . 2 . . . . . . . . . . . . . Hover 4 | . . . . . . 1 . . . . 2 . . . . 1 . . Flight 2 | . . . . . . . . 1 . . . . . . . 1 . . Utility 35 | . 1 5 . . 3 3 . 1 . . 9 . 3 3 1 6 . . Device 9 | . . 1 . . . 2 . . . . 1 . 2 . . 3 . . Storage 1 | . 1 . . . . . . . . . . . . . . . . . Processor 3 | . . . . . 2 1 . . . . . . . . . . . . Hackware 3 | . . . . . . . . . . . . . . 1 1 1 . . Protection 19 | . . 4 . . 1 . . 1 . . 8 . 1 2 . 2 . . Artifact . | . . . . . . . . . . . . . . . . . . . Weapon 28 | . 3 1 . 1 2 2 5 . . . . 2 . 1 3 7 1 . Energy Gun . | . . . . . . . . . . . . . . . . . . . Energy Cannon . | . . . . . . . . . . . . . . . . . . . Ballistic Gun 20 | . 3 1 . 1 2 2 3 . . . . 1 . 1 1 4 1 . Ballistic Cannon 2 | . . . . . . . . . . . . 1 . . . 1 . . Launcher 1 | . . . . . . . 1 . . . . . . . . . . . Special Weapon 5 | . . . . . . . 1 . . . . . . . 2 2 . . Impact Weapon . | . . . . . . . . . . . . . . . . . . . Slashing Weapon . | . . . . . . . . . . . . . . . . . . . Piercing Weapon . | . . . . . . . . . . . . . . . . . . . Special Melee Weapon . | . . . . . . . . . . . . . . . . . . . Unidentified Prototypes 2 | . . 1 . . . . 1 . . . . . . . . . . . Corrupted Parts 1 | . . . . . . . 1 . . . . . . . . . . . System Corruption 2 | . . . . . . . 2 . . . . . . . . . . . Parts Lost 43 | . 4 2 . . 4 1 2 2 . . 4 . . 1 1 20 2 . Power 5 | . 1 1 . . . . . . . . 1 . . . . 2 . . Propulsion 15 | . 1 1 . . 1 1 2 1 . . 2 . . . . 4 2 . Utility 13 | . . . . . 1 . . 1 . . 1 . . 1 1 8 . . Weapon 10 | . 2 . . . 2 . . . . . . . . . . 6 . . Highest Loss Streak 12 | . 3 1 . . 2 1 2 2 . . 4 . . 1 1 12 1 . Average Slot Usage (%) 86 | . 79 96 100 100 83 97 90 99 100 100 88 78 83 83 85 62 14 5 Engine 7 | . 13 11 14 14 9 7 7 7 7 7 5 6 6 6 6 2 . . Treads 4 | . . . . . . . . . . . . 8 13 13 13 8 . . Leg 13 | . 26 27 28 28 18 12 17 27 30 30 19 9 . . . . . . Wheel 2 | . . . . . 3 15 6 . . . . . . . . . . . Device 7 | . . 4 . . . 13 15 7 7 7 6 . 10 11 6 7 . . Storage 7 | . 14 14 14 14 9 7 7 7 7 7 6 6 6 6 6 4 . . Processor 11 | . . . . . 16 16 23 23 23 23 20 20 15 11 4 . . . Hackware 2 | . . . . . . . . . . . . . . 1 7 15 5 5 Protection 11 | . . 8 14 14 8 6 . 6 7 7 14 13 17 17 25 7 . . Ballistic Gun 11 | . 9 28 28 28 17 14 8 15 15 15 13 13 6 6 5 7 . . Ballistic Cannon 2 | . . . . . . . . . . . . . 6 6 6 4 . . Naked Turns . | . . . . . . . . . . . . . . . . . . . Heaviest Build 76 | 12 18 32 17 18 28 48 43 47 47 47 58 54 66 71 71 76 4 . Greatest Support 140 | 20 20 20 20 20 30 22 68 68 66 66 66 140 140 140 140 140 7 3 Greatest Overweight (x) 6 | . . 1 . . 1 2 1 . . . 2 . . . . 6 1 . Average Overweight (x) . | . . . . . . 1 . . . . . . . . . . . . Largest Inventory Capacity 10 | . 10 10 10 10 10 10 10 10 10 10 10 10 10 10 10 10 5 5 Average Capacity 9 | . 8 10 10 10 10 10 10 10 10 10 10 10 10 10 10 9 5 5 Most Carried 10 | . 8 10 10 10 10 10 10 10 10 10 10 10 10 10 10 10 5 5 Average Carried 9 | . 7 9 9 10 9 8 9 9 10 9 8 9 9 9 9 6 5 5 Final Capacity 10 | 8 10 10 10 10 10 10 10 10 10 10 10 10 10 10 10 5 5 5 Final Carried 10 | 6 8 10 10 10 7 10 10 10 10 10 9 10 10 10 10 5 5 5 Class Distribution -------------------- 43% | Mutant 31% | Skirmisher 21% | Scavenger-Mutant Dominant Class ---------------- Mutant | -10/Materials Mutant | -10/Mines Mutant | -10/Exiles Mutant | -9/Mines Skirmisher | -8/Materials Skirmisher | -7/Factory Skirmisher | -7/Lower Caves Mutant | -7/Lower Caves Mutant | -7/Data Miner Mutant | -6/Proximity Caves Skirmisher | -6/Factory Skirmisher | -6/Waste Mutant | -6/Factory Mutant | -6/Garrison Scavenger-Mutant | -6/Factory Scavenger-Tank | -5/Factory Mutant | -5/Upper Caves Mutant | -5/Upper Caves Resources | -11 -10 -10 -10 -9 -8 -7 -7 -7 -7 -6 -6 -6 -6 -6 -6 -5 -5 -5 ----------- Run | Scr Mat Min Exi Min Mat Fac Low Low Dat Pro Fac Was Fac Gar Fac Fac Upp Upp Matter Collected 2816 | 193 81 171 . 14 198 109 393 100 . 46 269 237 72 215 272 423 23 . Remotely . | . . . . . . . . . . . . . . . . . . . Salvage Created 2687 | . 298 172 . . 229 147 392 41 . . 269 . . 40 359 740 . . Parts 109 | . 14 12 . . 16 7 19 5 . . 3 . . . 8 25 . . Haulers Intercepted 1 | . 1 . . . . . . . . . . . . . . . . . Recyclers Shooed 1 | . . . . . . . . . . . . . . . . 1 . . Parts Field Recycled . | . . . . . . . . . . . . . . . . . . . Retrieved Matter . | . . . . . . . . . . . . . . . . . . . Parts Self-Destructed 23 | . . . . . . . 17 6 . . . . . . . . . . Prevented 3 | . . . . . . . 2 1 . . . . . . . . . . Kills | -11 -10 -10 -10 -9 -8 -7 -7 -7 -7 -6 -6 -6 -6 -6 -6 -5 -5 -5 ------- Run | Scr Mat Min Exi Min Mat Fac Low Low Dat Pro Fac Was Fac Gar Fac Fac Upp Upp Combat Hostiles Destroyed 64 | . 7 7 . . 5 5 12 3 . . 7 . . 1 7 10 . . Guns 50 | . 6 7 . . 5 5 7 3 . . 7 . . . 3 7 . . Cannons 7 | . . . . . . . . . . . . . . 1 4 2 . . AOE 1 | . 1 . . . . . . . . . . . . . . . . . Classes Destroyed 13 | . 3 1 . . 2 2 3 . . . . . . . . 2 . . Worker 1 | . . . . . 1 . . . . . . . . . . . . . Hauler 1 | . 1 . . . . . . . . . . . . . . . . . Recycler 1 | . . . . . . . . . . . . . . . . 1 . . Watcher 2 | . . . . . 1 . . . . . . . . . 1 . . . Swarmer 18 | . 3 5 . . 2 . 5 3 . . . . . . . . . . Grunt 24 | . 4 . . . 2 3 . . . . 7 . . . 5 3 . . Brawler 2 | . . . . . . 1 1 . . . . . . . . . . . Duelist 1 | . . . . . . . 1 . . . . . . . . . . . Sentry 7 | . . 2 . . 1 . 1 . . . . . . 1 1 1 . . Specialist 6 | . . . . . . . 2 . . . . . . . . 4 . . Hunter 1 | . . . . . . . 1 . . . . . . . . . . . Programmer 4 | . . . . . . 1 1 . . . . . . . 1 1 . . Heavy 1 | . . . . . . . . . . . . . . . . 1 . . Best Kill Streak 4 | . 3 3 . . 3 4 4 3 . . 4 . . 1 2 4 . . Combat Bots Only 4 | . 3 3 . . 3 4 4 3 . . 4 . . 1 2 4 . . Max Kills in Single Turn 1 | . 1 1 . . 1 1 1 1 . . 1 . . 1 1 1 . . Gunslinging . | . . . . . . . . . . . . . . . . . . . Exploded 1 | . 1 . . . . . . . . . . . . . . . . . Melee . | . . . . . . . . . . . . . . . . . . . Uniques/NPCs Destroyed . | . . . . . . . . . . . . . . . . . . . Combat | -11 -10 -10 -10 -9 -8 -7 -7 -7 -7 -6 -6 -6 -6 -6 -6 -5 -5 -5 -------- Run | Scr Mat Min Exi Min Mat Fac Low Low Dat Pro Fac Was Fac Gar Fac Fac Upp Upp Damage Taken 9111 | . 437 441 . . 398 379 797 246 . . 778 69 . 319 759 4048 231 209 Core 1699 | . 40 109 . . 78 82 192 27 . . 80 22 . 11 56 666 128 208 Absorbed by Shields . | . . . . . . . . . . . . . . . . . . . Reduced by Siege Mode 192 | . . . . . . . . . . . . . . . 4 188 . . Core Remaining (%) 72 | 100 . . . 40 85 . . . . 57 . . . . 80 . . . Volleys Fired 268 | . 30 21 . . 37 15 27 6 . . 30 . 1 16 41 44 . . Largest 4 | . 2 2 . . 2 2 2 2 . . 2 . 2 2 2 4 . . Hottest 168 | . 80 40 . . 43 56 56 56 . . 56 . 81 83 83 168 . . Shots Fired 448 | . 41 42 . . 61 30 41 12 . . 60 . 2 32 47 80 . . Gun 382 | . 41 42 . . 61 30 28 12 . . 60 . 1 16 26 65 . . Cannon 45 | . . . . . . . . . . . . . 1 16 16 12 . . Launcher 1 | . . . . . . . 1 . . . . . . . . . . . Special 20 | . . . . . . . 12 . . . . . . . 5 3 . . Kinetic 405 | . 19 42 . . 61 30 28 12 . . 60 . 2 32 42 77 . . Thermal . | . . . . . . . . . . . . . . . . . . . Explosive 1 | . . . . . . . 1 . . . . . . . . . . . Electromagnetic 22 | . 22 . . . . . . . . . . . . . . . . . Robot Hit Streak 15 | . 11 9 . . 10 7 5 4 . . 10 . 1 10 9 15 . . Robot Miss Streak 8 | . 2 4 . . 2 4 6 6 . . 8 . 7 7 6 4 . . Penetration Max 1 | . . . . . . . . . . . . . . . . 1 . . Secondary Targets 6 | . 1 2 . . . 1 1 . . . . . . . . 1 . . Max Gunslinging Chain 1 | . 1 1 . . . 1 1 . . . . . . . . 1 . . Shots Hit Robots 343 | . 27 27 . . 37 29 29 11 . . 56 . 2 20 30 75 . . Core Hits 268 | . 13 12 . . 12 32 27 15 . . 66 . 1 15 24 51 . . Critical Kills 1 | . . . . . . . . . . . . . . . . 1 . . Critical Parts Destroyed 5 | . . . . . 2 . . . . . . . . 1 1 1 . . Critical Strikes 8 | . . 1 . . 2 . . . . . . . . 1 1 3 . . Destroy 7 | . . 1 . . 2 . . . . . . . . 1 1 2 . . Blast 1 | . . . . . . . . . . . . . . . . 1 . . Melee Attacks . | . . . . . . . . . . . . . . . . . . . Impact . | . . . . . . . . . . . . . . . . . . . Slashing . | . . . . . . . . . . . . . . . . . . . Piercing . | . . . . . . . . . . . . . . . . . . . Sneak Attacks . | . . . . . . . . . . . . . . . . . . . Combat Hostiles . | . . . . . . . . . . . . . . . . . . . Follow-up Attacks . | . . . . . . . . . . . . . . . . . . . Damage Inflicted 6389 | . 441 306 . . 442 604 273 180 . . 1078 . 19 499 761 1776 . 10 Guns 5285 | . 324 306 . . 442 604 266 180 . . 1078 . 9 199 429 1448 . . Cannons 948 | . . . . . . . . . . . . . 10 289 332 317 . . Explosions 124 | . 117 . . . . . 7 . . . . . . . . . . . Melee . | . . . . . . . . . . . . . . . . . . . Ramming 32 | . . . . . . . . . . . . . . 11 . 11 . 10 Kinetic 6075 | . 166 306 . . 442 604 266 180 . . 1078 . 19 488 761 1765 . . Thermal 117 | . 117 . . . . . . . . . . . . . . . . . Explosive 7 | . . . . . . . 7 . . . . . . . . . . . Electromagnetic 158 | . 158 . . . . . . . . . . . . . . . . . Impact . | . . . . . . . . . . . . . . . . . . . Slashing . | . . . . . . . . . . . . . . . . . . . Piercing . | . . . . . . . . . . . . . . . . . . . Highest Corruption 8 | . . . . . . . 4 4 4 4 . . . . 2 5 7 8 Average Corruption 3 | . . . . . . . 2 4 4 4 . . . . 1 4 5 7 Corruption Purged . | . . . . . . . . . . . . . . . . . . . Effects 52 | . . . . . . . 12 11 2 9 . . . . 7 6 4 1 Message Errors 13 | . . . . . . . 4 . . 1 . . . . 5 . 2 1 Matter Fused 12 | . . . . . . . 1 3 2 4 . . . . . 2 . . Heat Flow Errors 7 | . . . . . . . 3 2 . . . . . . . 1 1 . Energy Discharges 9 | . . . . . . . 2 2 . 3 . . . . 1 1 . . Parts Rejected 1 | . . . . . . . . . . . . . . . . 1 . . Data Loss (minor) 8 | . . . . . . . 2 4 . 1 . . . . 1 . . . Data Loss (major) 2 | . . . . . . . . . . . . . . . . 1 1 . Overload Shots . | . . . . . . . . . . . . . . . . . . . Overflow Damage 11 | . 11 . . . . . . . . . . . . . . . . . Projectiles . | . . . . . . . . . . . . . . . . . . . Explosions 11 | . 11 . . . . . . . . . . . . . . . . . Melee . | . . . . . . . . . . . . . . . . . . . Knockbacks 15 | . . . . . . . . . . . . . 1 3 4 7 . . Impact . | . . . . . . . . . . . . . . . . . . . Kinetic 14 | . . . . . . . . . . . . . 1 2 4 7 . . Secondary 1 | . . . . . . . . . . . . . . 1 . . . . Self-Inflicted Damage 71 | . 67 . . . . . . . . . . . . . . . . 4 Shots 2 | . 2 . . . . . . . . . . . . . . . . . Rammed 14 | . . . . . . . . . . . . . . 2 1 7 . 4 Targets Rammed 15 | . 1 . . . . . . . . . . . . 2 1 7 . 4 Kicked 1 | . 1 . . . . . . . . . . . . . . . . . Crushed . | . . . . . . . . . . . . . . . . . . . Highest Temperature 553 | . 72 27 . . 22 91 147 132 . . 207 . 27 168 233 553 170 . Average Temperature 85 | . 25 11 . . 6 59 73 65 . . 96 . 14 56 65 248 98 . Received Heat Transfer 2100 | . 195 99 . . 216 198 42 . . . 372 . . 174 264 540 . . Effects 5 | . . . . . . . . . . . . . . . . 5 . . Shutdowns 2 | . . . . . . . . . . . . . . . . 2 . . Energy Bleed 1 | . . . . . . . . . . . . . . . . 1 . . Short Circuit 1 | . . . . . . . . . . . . . . . . 1 . . Damage (core) 1 | . . . . . . . . . . . . . . . . 1 . . Siege Activations 3 | . . . . . . . . . . . . . . . 1 2 . . Total Turns 97 | . . . . . . . . . . . . . . . 6 91 . . Longest Duration 66 | . . . . . . . . . . . . . . . 6 66 . . Robots Corrupted . | . . . . . . . . . . . . . . . . . . . Combat Hostiles . | . . . . . . . . . . . . . . . . . . . Parts Fried . | . . . . . . . . . . . . . . . . . . . Impact Corruptions . | . . . . . . . . . . . . . . . . . . . Robots Melted . | . . . . . . . . . . . . . . . . . . . Combat Hostiles . | . . . . . . . . . . . . . . . . . . . Parts Melted 1 | . . . . . 1 . . . . . . . . . . . . . Heat Transferred 150 | . 150 . . . . . . . . . . . . . . . . . Parts Sabotaged . | . . . . . . . . . . . . . . . . . . . Parts Stolen . | . . . . . . . . . . . . . . . . . . . Parts Stripped . | . . . . . . . . . . . . . . . . . . . Power Chain Reactions 2 | . 2 . . . . . . . . . . . . . . . . . Missiles Intercepted . | . . . . . . . . . . . . . . . . . . . Alert | -11 -10 -10 -10 -9 -8 -7 -7 -7 -7 -6 -6 -6 -6 -6 -6 -5 -5 -5 ------- Run | Scr Mat Min Exi Min Mat Fac Low Low Dat Pro Fac Was Fac Gar Fac Fac Upp Upp Peak Influence 1076 | . 218 141 . . 298 197 . . . . 145 90 341 1076 564 462 . . Initial 564 | . . 31 . . . 42 . . . . . 50 63 238 564 223 . . Average 311 | . 106 60 . . 137 81 . . . . 58 77 166 903 413 284 . . Maximum Alert Level 3 | . 1 . . . 1 . . . . . . . 1 3 2 2 . . Low Security (%) 46 | . 81 100 . 100 63 100 . . . . 100 100 60 . . 15 . . Level 1 26 | . 18 . . . 36 . . . . . . . 39 10 60 53 . . Level 2 12 | . . . . . . . . . . . . . . 1 39 30 . . Level 3 13 | . . . . . . . . . . . . . . 87 . . . . Level 4 . | . . . . . . . . . . . . . . . . . . . Level 5 . | . . . . . . . . . . . . . . . . . . . High Security . | . . . . . . . . . . . . . . . . . . . Max Security . | . . . . . . . . . . . . . . . . . . . Squads Dispatched 25 | . 2 . . . 2 4 . . . . 1 . 2 . 6 8 . . Investigation 4 | . 1 . . . . 1 . . . . . . 1 . . 1 . . Extermination 3 | . . . . . . 1 . . . . . . . . 1 1 . . Reinforcement 13 | . 1 . . . 2 2 . . . . 1 . 1 . 2 4 . . Assault . | . . . . . . . . . . . . . . . . . . . Garrison 5 | . . . . . . . . . . . . . . . 3 2 . . Intercept . | . . . . . . . . . . . . . . . . . . . Construction Impeded . | . . . . . . . . . . . . . . . . . . . Haulers Reinforced 1 | . . . . . . . . . . . . . . . 1 . . . Active Scanning Responses . | . . . . . . . . . . . . . . . . . . . Cargo Convoy Interrupts . | . . . . . . . . . . . . . . . . . . . Stealth | -11 -10 -10 -10 -9 -8 -7 -7 -7 -7 -6 -6 -6 -6 -6 -6 -5 -5 -5 --------- Run | Scr Mat Min Exi Min Mat Fac Low Low Dat Pro Fac Was Fac Gar Fac Fac Upp Upp Distress Signals 6 | . 2 . . . 4 . . . . . . . . . . . . . Communications Jammed . | . . . . . . . . . . . . . . . . . . . Distress Signals . | . . . . . . . . . . . . . . . . . . . Times Spotted 146 | . 15 8 . . 18 7 14 4 . . 9 5 1 14 19 21 4 7 Peak Tracking Total 8 | . 6 3 . . 6 4 4 4 . . 4 2 1 6 4 6 3 8 Tactical Retreats 11 | . . 1 . . 3 . 1 . . . . . . . 1 3 1 1 Traps | -11 -10 -10 -10 -9 -8 -7 -7 -7 -7 -6 -6 -6 -6 -6 -6 -5 -5 -5 ------- Run | Scr Mat Min Exi Min Mat Fac Low Low Dat Pro Fac Was Fac Gar Fac Fac Upp Upp Traps Triggered 3 | . . . . . . 1 . . . . 1 . . . . 1 . . Indirectly . | . . . . . . . . . . . . . . . . . . . Trap Hack Attempts . | . . . . . . . . . . . . . . . . . . . Triggered . | . . . . . . . . . . . . . . . . . . . Disarmed . | . . . . . . . . . . . . . . . . . . . Reprogrammed . | . . . . . . . . . . . . . . . . . . . Reused . | . . . . . . . . . . . . . . . . . . . Traps Extracted . | . . . . . . . . . . . . . . . . . . . Installed . | . . . . . . . . . . . . . . . . . . . Triggered 1 | . . . . . . . . 1 . . . . . . . . . . Machines | -11 -10 -10 -10 -9 -8 -7 -7 -7 -7 -6 -6 -6 -6 -6 -6 -5 -5 -5 ---------- Run | Scr Mat Min Exi Min Mat Fac Low Low Dat Pro Fac Was Fac Gar Fac Fac Upp Upp Machines Disabled 15 | . 1 . . . . . 1 . . . . . . 2 5 6 . . Max in Single Turn 2 | . 1 . . . . . 1 . . . . . . 1 1 2 . . Garrison Relay 2 | . . . . . . . . . . . . . . 2 . . . . Machines Sabotaged . | . . . . . . . . . . . . . . . . . . . Garrisons Compromised . | . . . . . . . . . . . . . . . . . . . Overloaded Fab Kills . | . . . . . . . . . . . . . . . . . . . Hacking | -11 -10 -10 -10 -9 -8 -7 -7 -7 -7 -6 -6 -6 -6 -6 -6 -5 -5 -5 --------- Run | Scr Mat Min Exi Min Mat Fac Low Low Dat Pro Fac Was Fac Gar Fac Fac Upp Upp Machines Accessed 21 | . 4 1 1 . 2 1 1 . 4 . 1 . 2 . 2 2 . . Terminals 8 | . 3 . . . 2 . . . . . . . . . 1 2 . . Fabricators . | . . . . . . . . . . . . . . . . . . . Repair Stations 2 | . . . . . . . . . . . 1 . . . 1 . . . Recycling Units 3 | . 1 . . . . 1 . . . . . . 1 . . . . . Scanalyzers . | . . . . . . . . . . . . . . . . . . . Garrison Access 1 | . . . . . . . . . . . . . 1 . . . . . Total Hacks 59 | . 8 1 1 . 5 2 1 . 29 . 1 . 3 . 4 4 . . Successful 48 | . 5 1 1 . 4 1 1 . 29 . . . 2 . 2 2 . . Failed 11 | . 3 . . . 1 1 . . . . 1 . 1 . 2 2 . . Catastrophic 1 | . . . . . . . . . . . . . . . . 1 . . Database Lockouts . | . . . . . . . . . . . . . . . . . . . Manual 18 | . 6 . 1 . 1 2 1 . . . . . 2 . 1 4 . . Terminals 17 | . 6 . . . 5 . . . . . . . . . 2 4 . . Fabricators . | . . . . . . . . . . . . . . . . . . . Repair Stations 3 | . . . . . . . . . . . 1 . . . 2 . . . Recycling Units 6 | . 2 . . . . 2 . . . . . . 2 . . . . . Scanalyzers . | . . . . . . . . . . . . . . . . . . . Garrison Access 1 | . . . . . . . . . . . . . 1 . . . . . Terminal Hacks 39 | . 3 1 1 . 3 . 1 . 29 . . . . . . 1 . . Record 11 | . . . . . . . . . 11 . . . . . . . . . Part Schematic 10 | . . . . . . . . . 10 . . . . . . . . . Robot Schematic 5 | . . . . . . . . . 5 . . . . . . . . . Robot Analysis 1 | . 1 . . . . . . . . . . . . . . . . . Prototype ID Bank 3 | . . . . . . . . . 3 . . . . . . . . . Open Door 2 | . . 1 . . . . 1 . . . . . . . . . . . Branch Access Points 2 | . 1 . . . 1 . . . . . . . . . . . . . Emergency Access Points 1 | . . . . . 1 . . . . . . . . . . . . . Unreport Threat 2 | . 1 . . . . . . . . . . . . . . 1 . . Locate Traps 1 | . . . . . 1 . . . . . . . . . . . . . EX-Prototype ID Bank 1 | . . . 1 . . . . . . . . . . . . . . . Fabricator Hacks . | . . . . . . . . . . . . . . . . . . . Repair Station Hacks 2 | . . . . . . . . . . . . . . . 2 . . . Scan Component 1 | . . . . . . . . . . . . . . . 1 . . . Repair 1 | . . . . . . . . . . . . . . . 1 . . . Recycling Unit Hacks . | . . . . . . . . . . . . . . . . . . . Scanalyzer . | . . . . . . . . . . . . . . . . . . . Garrison Access Hacks 1 | . . . . . . . . . . . . . 1 . . . . . Unlock Access 1 | . . . . . . . . . . . . . 1 . . . . . Unauthorized Hacks 6 | . 2 . . . 1 1 . . . . . . 1 . . 1 . . Terminals 3 | . 1 . . . 1 . . . . . . . . . . 1 . . Track 1 | . . . . . 1 . . . . . . . . . . . . . Botnet 1 | . 1 . . . . . . . . . . . . . . . . . Sabotage 1 | . . . . . . . . . . . . . . . . 1 . . Fabricators . | . . . . . . . . . . . . . . . . . . . Repair Stations . | . . . . . . . . . . . . . . . . . . . Recycling Units 3 | . 1 . . . . 1 . . . . . . 1 . . . . . Tunnel 3 | . 1 . . . . 1 . . . . . . 1 . . . . . Scanalyzers . | . . . . . . . . . . . . . . . . . . . Garrison Access . | . . . . . . . . . . . . . . . . . . . Data Cores Recovered . | . . . . . . . . . . . . . . . . . . . Used . | . . . . . . . . . . . . . . . . . . . Hacking Detections 8 | . 2 . . . 2 . . . . . 1 . . . 2 1 . . Full Trace Events . | . . . . . . . . . . . . . . . . . . . Feedback Events . | . . . . . . . . . . . . . . . . . . . Feedback Blocked . | . . . . . . . . . . . . . . . . . . . Robot Schematics Acquired 5 | . . . . . . . . . 5 . . . . . . . . . Robots Built . | . . . . . . . . . . . . . . . . . . . Authchips . | . . . . . . . . . . . . . . . . . . . Time . | . . . . . . . . . . . . . . . . . . . Total Robot Build Rating . | . . . . . . . . . . . . . . . . . . . Part Schematics Acquired 10 | . . . . . . . . . 10 . . . . . . . . . Parts Built . | . . . . . . . . . . . . . . . . . . . Authchips . | . . . . . . . . . . . . . . . . . . . Time . | . . . . . . . . . . . . . . . . . . . Total Part Build Rating . | . . . . . . . . . . . . . . . . . . . Parts Repaired 1 | . . . . . . . . . . . . . . . 1 . . . Time 56 | . . . . . . . . . . . . . . . 56 . . . Parts Recycled . | . . . . . . . . . . . . . . . . . . . Recycled Matter . | . . . . . . . . . . . . . . . . . . . Retrieved Matter . | . . . . . . . . . . . . . . . . . . . Retrieved Components . | . . . . . . . . . . . . . . . . . . . Parts Scanalyzed . | . . . . . . . . . . . . . . . . . . . Part Schematics Acquired . | . . . . . . . . . . . . . . . . . . . Parts Damaged . | . . . . . . . . . . . . . . . . . . . Bothacking | -11 -10 -10 -10 -9 -8 -7 -7 -7 -7 -6 -6 -6 -6 -6 -6 -5 -5 -5 ------------ Run | Scr Mat Min Exi Min Mat Fac Low Low Dat Pro Fac Was Fac Gar Fac Fac Upp Upp Used RIF Installer 1 | . . . . . . . . . . . . . . 1 . . . . Robots Hacked 5 | . . . . . . . . . . . . . . . 4 1 . . Non-combat . | . . . . . . . . . . . . . . . . . . . Combat 5 | . . . . . . . . . . . . . . . 4 1 . . Robot Hacks Applied 5 | . . . . . . . . . . . . . . . 4 1 . . parse_system 2 | . . . . . . . . . . . . . . . 1 1 . . overwrite_iff 3 | . . . . . . . . . . . . . . . 3 . . . Relay Couplers Released 7 | . . . . . . . . . . . . . . 7 . . . . Machine Destruction 7 | . . . . . . . . . . . . . . 7 . . . . Attached 2 | . . . . . . . . . . . . . . 1 . 1 . . Fabnet Peak Effective % . | . . . . . . . . . . . . . . . . . . . Robots Rewired . | . . . . . . . . . . . . . . . . . . . Allies Hacked 2 | . . . . . . . . . . . . . . . 2 . . . Hacks Repelled . | . . . . . . . . . . . . . . . . . . . Allies | -11 -10 -10 -10 -9 -8 -7 -7 -7 -7 -6 -6 -6 -6 -6 -6 -5 -5 -5 -------- Run | Scr Mat Min Exi Min Mat Fac Low Low Dat Pro Fac Was Fac Gar Fac Fac Upp Upp Total Allies 25 | . . . . 3 . . . . . . . 19 . . 3 . . . Largest Group 19 | . . . . 3 3 . . . . . . 19 17 15 7 1 . . Highest-Rated Group 696 | . . . . 40 40 . . . . . . 696 646 593 278 32 . . Highest-Rated Ally 50 | . . . . 16 16 . . . . . . 50 50 50 47 32 . . Total Orders 23 | . . 12 . . . 2 7 1 . 1 . . . . . . . . FOLLOW 1 | . . 1 . . . . . . . . . . . . . . . . EXPLORE 12 | . . 4 . . . 1 5 1 . 1 . . . . . . . . RETURN 10 | . . 7 . . . 1 2 . . . . . . . . . . . Ally Attacks 272 | . . . . . 44 . . . . . . 92 23 76 37 . . . Total Damage 8208 | . . . . . 504 . . . . . . 3539 619 2540 1006 . . . Kills 43 | . . . . . 4 . . . . . . 8 6 19 6 . . . Allies Corrupted . | . . . . . . . . . . . . . . . . . . . Allies Melted 1 | . . . . . . . . . . . . . . . 1 . . . Intel | -11 -10 -10 -10 -9 -8 -7 -7 -7 -7 -6 -6 -6 -6 -6 -6 -5 -5 -5 ------- Run | Scr Mat Min Exi Min Mat Fac Low Low Dat Pro Fac Was Fac Gar Fac Fac Upp Upp Robot Analysis Total 1 | . 1 . . . . . . . . . . . . . . . . . Derelict Logs Recovered 6 | . . 2 . . . . . 1 . 1 . . . . . . 2 . Drone Launches 32 | . . 7 . . . 1 11 4 . . 2 . 7 . . . . . Drone Recoveries 27 | . . 7 . . . . 9 1 . 1 2 . . 4 3 . . . Exploration | -11 -10 -10 -10 -9 -8 -7 -7 -7 -7 -6 -6 -6 -6 -6 -6 -5 -5 -5 ------------- Run | Scr Mat Min Exi Min Mat Fac Low Low Dat Pro Fac Was Fac Gar Fac Fac Upp Upp Turns Passed 9131 | . 392 693 282 374 467 473 1400 558 109 224 325 191 335 998 1545 539 191 35 Spaces Moved 5773 | 1 249 449 234 306 284 277 978 471 97 198 137 124 202 576 397 339 394 60 Core 241 | . . . . . . . . . . . . . . . . 158 23 60 Treads 1388 | . . . . . . . . . . . . 69 202 576 397 144 . . Legs 2872 | 1 249 449 234 306 243 . 434 471 97 198 135 55 . . . . . . Wheels 862 | . . . . . 41 277 544 . . . . . . . . . . . Hover 38 | . . . . . . . . . . . 2 . . . . 36 . . Flight 372 | . . . . . . . . . . . . . . . . 1 371 . Fastest Speed 40 | 120 120 120 120 120 100 100 100 110 112 112 106 115 160 160 160 40 45 50 Average Speed 121 | 120 120 136 120 120 117 104 122 111 112 112 126 140 160 160 160 97 48 50 Slowest Speed 350 | 120 120 190 120 120 190 115 190 112 112 112 260 160 160 160 160 350 100 50 Overloaded Moves . | . . . . . . . . . . . . . . . . . . . Propulsion Burnouts . | . . . . . . . . . . . . . . . . . . . Robots Hopped . | . . . . . . . . . . . . . . . . . . . Cave-ins Triggered . | . . . . . . . . . . . . . . . . . . . Exploration Rate (%) 46 | 2 38 99 65 53 32 24 98 81 76 51 4 89 8 58 12 11 67 17 Regions Visited 18 Branch Regions 9 Pre-discovered Areas 5 | . 1 . . . . 1 . . 1 1 . . 1 . . . . . Known Exits Taken 8 | . 1 . 1 . . . 1 1 . 1 . . 1 . 1 1 . . Unknown Exits Taken 7 | 1 . 1 . 1 1 1 . . 1 . . . . . . . 1 . Scrap Searched 15 | . . 1 . 1 . . 7 3 . 2 . . . . . . 1 . Spaces Dug 3 | . . . . . . . 3 . . . . . . . . . . . Terrain Destroyed 14 | . 6 . . . . . 3 . . . . . . 3 1 1 . . Melee . | . . . . . . . . . . . . . . . . . . . Projectile 5 | . . . . . . . . . . . . . . 3 1 1 . . AOE 9 | . 6 . . . . . 3 . . . . . . . . . . . Terrain Rammed . | . . . . . . . . . . . . . . . . . . . Walls Destroyed . | . . . . . . . . . . . . . . . . . . . Machines Disabled . | . . . . . . . . . . . . . . . . . . . Actions | -11 -10 -10 -10 -9 -8 -7 -7 -7 -7 -6 -6 -6 -6 -6 -6 -5 -5 -5 --------- Run | Scr Mat Min Exi Min Mat Fac Low Low Dat Pro Fac Was Fac Gar Fac Fac Upp Upp Total 7461 | . 304 487 235 313 364 438 1127 492 97 200 232 144 212 623 1261 473 394 65 Wait 1175 | . 3 4 . 6 26 121 97 9 1 1 29 1 1 14 815 47 . . Move 5755 | . 248 448 233 305 283 276 977 470 96 197 137 123 201 574 396 338 393 60 Hop . | . . . . . . . . . . . . . . . . . . . Pick Up 68 | . 9 5 1 . 6 12 3 1 . 1 5 2 2 7 2 12 . . Fast Attach 32 | . 4 . . 1 2 2 5 2 . . 5 5 2 . 1 2 1 . Attach 46 | . 1 3 . . 6 3 2 1 . . 11 . 1 2 . 16 . . Detach 8 | . . . . . . . . . . . 5 1 . . . 2 . . Swap 23 | . 1 5 . . 1 1 3 1 . . 3 1 1 2 3 1 . . Drop 66 | . 7 1 1 1 3 8 8 2 . 1 7 11 3 6 2 4 . 1 Fire 268 | . 30 21 . . 37 15 27 6 . . 30 . 1 16 41 44 . . Melee . | . . . . . . . . . . . . . . . . . . . Ram 6 | . . . . . . . . . . . . . . . . 2 . 4 Kick 1 | . 1 . . . . . . . . . . . . . . . . . Crush 8 | . . . . . . . . . . . . . . 2 1 5 . . Escape Stasis . | . . . . . . . . . . . . . . . . . . . Rewire 5 | . . . . . . . 5 . . . . . . . . . . . Trap . | . . . . . . . . . . . . . . . . . . . Miscellaneous . | . . . . . . . . . . . . . . . . . . . Route ------- -11/Scrapyard -10/Materials -10/Mines (discovered 3 exits: *Mat x2 / *Exi) -10/Exiles (discovered 2 exits: *Min x2) -9/Mines -8/Materials -7/Factory -7/Lower Caves -7/Lower Caves (discovered 2 exits: *Fac / *Dat) -7/Data Miner -6/Proximity Caves -6/Factory -6/Waste -6/Factory -6/Garrison (discovered 2 exits: *Fac x2) -6/Factory (discovered 2 exits: *Fac x2) -5/Factory -5/Upper Caves -5/Upper Caves (discovered 1 exit: [*Fac]) History --------- Turn | Location | Event 1 | -11/Scrapyard | Discovered new exit (range 0) 1 | -11/Scrapyard | Entered Materials 15 | -10/Materials | Identified exit to Mines 306 | -10/Materials | Lost 3 parts (1p1n1w) 360 | -10/Materials | Build established: Mutant 393 | -10/Materials | Entered Mines 625 | -10/Mines | Found the Drone Emporium 630 | -10/Mines | Found Prototype Device 631 | -10/Mines | Identified Sensor Drone Bay 736 | -10/Mines | Core integrity fell below 50% 763 | -10/Mines | Discovered new exit (range 9) 785 | -10/Mines | Identified exit to Materials 885 | -10/Mines | Learned Materials interactive machine intel 950 | -10/Mines | Deemed a non-threat by the Exiles lab entrance 951 | -10/Mines | Discovered new exit (range 5) 978 | -10/Mines | Discovered exit to Materials (range 11) 1086 | -10/Mines | Entered Exiles 1087 | -10/Exiles | Identified exit to Mines 1119 | -10/Exiles | Met 8R-AWN 1136 | -10/Exiles | Met EX-HEX 1176 | -10/Exiles | Met EX-BIN 1199 | -10/Exiles | Aligned with FarCom system 1200 | -10/Exiles | Given EX-Vault access code 1234 | -10/Exiles | Opened EX-Vault 1242 | -10/Exiles | Found 0b10 Alert Chip 1266 | -10/Exiles | Warned to stay clear of 0b10 Research branches 1300 | -10/Exiles | Met EX-DEC 1368 | -10/Exiles | Left Exiles lab with 0b10 Alert Chip 1368 | -10/Exiles | Entered Mines 1406 | -9/Mines | Assisted by bots powering up and referring to "LRC-V3" 1717 | -9/Mines | Discovered new exit (range 11) 1742 | -9/Mines | Entered Materials 1742 | -8/Materials | Accompanied by 3 allies 1742 | -8/Materials | Evolved 4 slots: Propulsion x2, Utility x2 1743 | -8/Materials | Loaded intel: 19 interactive machine locations 2023 | -8/Materials | Discovered new exit (range 16) 2209 | -8/Materials | Entered Factory 2209 | -7/Factory | Evolved 2 slots: Utility x2 2295 | -7/Factory | Discovered new exit (range 3) 2682 | -7/Factory | Entered Lower Caves 2748 | -7/Lower Caves | Acquired the password to a Derelict Tinkerer's latest research 2782 | -7/Lower Caves | Build established: Skirmisher 2804 | -7/Lower Caves | Found Prototype Special Weapon 2804 | -7/Lower Caves | Identified Molecular Deconstructor 2885 | -7/Lower Caves | Caught by Unaware searching for contraband prototypes 3041 | -7/Lower Caves | Attracted the attention of an 0b10 checkpoint 3803 | -7/Lower Caves | Caught by Unaware searching for contraband prototypes 3868 | -7/Lower Caves | Discovered new exit (range 13) 3903 | -7/Lower Caves | Identified exit to Lower Caves 4082 | -7/Lower Caves | Entered another Lower Caves area 4082 | -7/Lower Caves | Discovered new exit (range 8) 4130 | -7/Lower Caves | Identified exit to Factory 4595 | -7/Lower Caves | Discovered new exit (range 17) 4598 | -7/Lower Caves | Build established: Mutant 4617 | -7/Lower Caves | Identified exit to Data Miner 4640 | -7/Lower Caves | Entered Data Miner 4640 | -7/Data Miner | Accompanied by 3 allies 4640 | -7/Data Miner | Discovered new exit (range 6) 4657 | -7/Data Miner | Met Data Miner 4701 | -7/Data Miner | Learned location of Section 7 (-2) 4701 | -7/Data Miner | Acquired the access code to Warlord's prototype stash 4716 | -7/Data Miner | Received God Mode back door access code from Data Miner 4749 | -7/Data Miner | Entered Proximity Caves 4749 | -6/Proximity Caves | Accompanied by 3 allies 4963 | -6/Proximity Caves | Discovered exit to Factory (range 8) 4973 | -6/Proximity Caves | Entered Factory 4973 | -6/Factory | Accompanied by 2 allies 4973 | -6/Factory | Evolved 2 slots: Utility x2 5163 | -6/Factory | Lost 4 parts (1p2n1u) 5267 | -6/Factory | Build established: Skirmisher 5298 | -6/Factory | Sucked down chute 5298 | -6/Factory | Entered Waste 5306 | -6/Waste | Spotted C-40 Crusher 5307 | -6/Waste | Spotted C-40 Crusher 5335 | -6/Waste | 2 allies followed down the chute 5339 | -6/Waste | Warlord forces began an assault 5348 | -6/Waste | Allies destroyed C-40 Crusher 5350 | -6/Waste | Allies destroyed C-40 Crusher 5365 | -6/Waste | Spotted C-40 Crusher 5366 | -6/Waste | Allies destroyed C-40 Crusher 5369 | -6/Waste | Spotted C-40 Crusher 5371 | -6/Waste | Spotted C-40 Crusher 5372 | -6/Waste | Allies destroyed C-40 Crusher 5372 | -6/Waste | Spotted C-40 Crusher 5374 | -6/Waste | Allies destroyed C-40 Crusher 5379 | -6/Waste | Allies destroyed C-40 Crusher 5460 | -6/Waste | Discovered new exit (range 11) 5489 | -6/Waste | Entered Factory 5489 | -6/Factory | Accompanied by 17 allies 5821 | -6/Factory | Identified exit to Garrison 5824 | -6/Factory | Entered Garrison 5824 | -6/Garrison | Accompanied by 22 allies 5906 | -6/Garrison | Build established: Mutant 5928 | -6/Garrison | Triggered checkpoint 5928 | -6/Garrison | Triggered checkpoint 5931 | -6/Garrison | Triggered checkpoint 5934 | -6/Garrison | Triggered checkpoint 6076 | -6/Garrison | Triggered checkpoint 6117 | -6/Garrison | Garrison Relay disabled 6205 | -6/Garrison | Discovered new exit (range 13) 6223 | -6/Garrison | Identified exit to Factory 6370 | -6/Garrison | Triggered checkpoint 6406 | -6/Garrison | Garrison Relay disabled 6438 | -6/Garrison | Discovered exit to Factory (range 15) 6471 | -6/Garrison | Installed Relay Interface Framework 6822 | -6/Garrison | Entered Factory 6822 | -6/Factory | Accompanied by 10 allies 6960 | -6/Factory | Build established: Scavenger-Mutant 7749 | -6/Factory | Discovered new exit (range 15) 7784 | -6/Factory | Identified exit to Factory 8089 | -6/Factory | P-60 Hacker assimilated allied SM-MJQ(m) 8092 | -6/Factory | Garrison activated, responded to threat 8135 | -6/Factory | Repaired Hvy. Treads 8289 | -6/Factory | Discovered exit to Factory (range 5) 8367 | -6/Factory | Entered another Factory area 8367 | -5/Factory | Accompanied by 1 ally 8367 | -5/Factory | Evolved 2 slots: Weapon x2 8368 | -5/Factory | Identified exit to Upper Caves 8512 | -5/Factory | Incoming investigation squad redirected 8611 | -5/Factory | Lost 6 parts (1p4u1w) 8723 | -5/Factory | Garrison activated, responded to threat 8796 | -5/Factory | Core integrity fell below 50% 8847 | -5/Factory | Lost 12 parts (1p4n2u5w) 8906 | -5/Factory | Entered Upper Caves 8961 | -5/Upper Caves | Learned Factory trap positions 9026 | -5/Upper Caves | Attracted the attention of an 0b10 checkpoint 9089 | -5/Upper Caves | Discovered new exit (range 9) 9094 | -5/Upper Caves | Build established: Mutant 9097 | -5/Upper Caves | Entered another Upper Caves area 9104 | -5/Upper Caves | Discovered new exit (range 8) 9126 | -5/Upper Caves | Core integrity fell below 20% 9132 | -5/Upper Caves | Destroyed by S-27 Virus with Autogun Last Messages --------------- 09016_ System corrupted: Substantial component data lost. 09026_ Y-64 Sentinel: "INTERCEPTING UNREGISTERED DERELICT." 09028_ Linear Gravjet destroyed. 09050_ Penetrated by Slug. 09067_ Searching scrap... 09067_ Found Phase Cannon. 09067_ Found 24 Matter. 09073_ Acquired Hvy. Battle Rifle. 09075_ Field Propulsion Drive destroyed. 09089_ EXIT=FOUND LOCATION=UNKNOWN GOAL=ESCAPE 09097_ Dropped Hvy. Battle Rifle. 09098_ B4-1AJ(k) breaks down the debris. 09099_ XX-AIF(k) breaks down the Hvy. Battle Rifle. 09104_ EXIT=FOUND 09111_ OADAL95%K3|LH2MWTDMD9A,&IARIPFO 09126_ Slammed into S-27 Virus. 09128_ Destabilizing: System corrupted (+1). 09129_ Slammed into S-27 Virus. Map ----- +----------------------------------------------------+ | ?????????????????????????????????????????????????? | | ?????????????????????????????????????????????????? | | ?????????????????????????????????????????????????? | | ?????????????????????????????????????????????????? | | ?????????????????????????????????????????????????? | | ?????????????????????????????????????????????????? | | ?????????????????????????????????????????????????? | | ?????????????????????????????????????????????????? | | ?????????????????????????????????????????????????? | | ?????????????????????????????????????????????????? | | ?????????????????????????????????????????????????? | | ????????????????????????????????????????????????## | | ????????????????????????????????###?????######### | | ???????????????????????????????## ###??## ## | | ???????????????????????????????# ##?# | | ????????????????????????????????# #?# | | ????????????????????????????????# #?# | | ???????????????????????####????## #### | | ??????????????????????## ###### ### #### | | ??????????????????????# ## ss ###??## | | ??????????????????????# %s ##?????# | | ??????????????????????## s#### #?????# | | ???????????????????????# ##??## ##?????# | | ???????????????????????# s##????## ##??????# | | ??????????????????????## #??????## #???????# | | ??????????????????????# @ #???????# ??????# | | ????????????????? #????## ?????# | | ???????????? #???# #???? | | ???????????## ##### #??# ?? | | ????????????# #????## #??## | | ???????????? #???????### #????### | | ???????????? #####???????????# ##???????###### | | ???????????? ??????????????????##?????????????## | | ?????????????????????????????????????????????????? | | ?????????????????????????????????????????????????? | | ?????????????????????????????????????????????????? | | ?????????????????????????????????????????????????? | | ?????????????????????????????????????????????????? | | ?????????????????????????????????????????????????? | | ?????????????????????????????????????????????????? | | ?????????????????????????????????????????????????? | | ?????????????????????????????????????????????????? | | ?????????????????????????????????????????????????? | | ?????????????????????????????????????????????????? | | ?????????????????????????????????????????????????? | | ?????????????????????????????????????????????????? | | ?????????????????????????????????????????????????? | | ?????????????????????????????????????????????????? | | ?????????????????????????????????????????????????? | | ?????????????????????????????????????????????????? | +----------------------------------------------------+ Best States ------------- Heat Dissipation 71 Coolant Potential 100 Energy Generation 19 Energy Capacity 315 Matter Stores 300 Matter Capacity 300 Sight Range 20 Terrain Scan Range 16 Terrain Scan Density 110 Armor Coverage 1500 Resistance: TH 20 Propulsion Shielding 33 Reclamation Efficiency 20 Evasion (%) 61 Recoil Reduction 4 Defensive Hacking 10 Relay Coupler Types 2 Relay Coupler Value 34 Item Schematics ----------------- Lgt. Regenerative Plating | -7/Data Miner | Free Combat Drone Bay | -7/Data Miner | Free Biomechanical Wings | -7/Data Miner | Free Antimatter Cannon | -7/Data Miner | Free Exp. Power Shielding | -7/Data Miner | Free Arm. Medium Treads | -7/Data Miner | Free Adv. Salvage Targeting Computer | -7/Data Miner | Free Adv. Thermal Shield | -7/Data Miner | Free Adv. Coolant Injector | -7/Data Miner | Free Neutron Cannon | -7/Data Miner | Free Robot Schematics ------------------ A-15 Conveyor | -7/Data Miner | Free E-15 Imp | -7/Data Miner | Free M-14 Sweeper | -7/Data Miner | Free G-50 Soldier | -7/Data Miner | Free R-10 Processor | -7/Data Miner | Free Fabricated ------------ Nothing Alien Tech Used ----------------- None Achievements -------------- Deconstruction Challenges ------------ None Game ------ Seed GyrokineticDecoderCharge Manual? 0 Play Time 01:25:23 Cumulative 85.3 hours Start 2021.11.10 @ 09:32:02 End 2021.11.10 @ 21:33:17 Sessions 5 Manual Loads 0 Difficulty Rogue Special Mode None Game No. 106 Rogue 106 Adventurer 0 Explorer 0 Win Type - Total 0 Types 0/0/0/0/0/0/0/0/0 Lore% 53 Gallery% 48 Achievement% 41 Wizard Run 0 Options --------- ASCII 1 Keyboard 0 Movement Vi Keybinds 0 Fullscreen 2 Font 20/SmallcapsGlow Map View 66x50 Tactical HUD 1 Map Filters NONE Filters NONE Steam 1 RUN: c0d9b61b-5159-4fe0-90c6-cfc1a29098fa